bitfinex-derivatives/quotes_ETHF0:USTF0_20250928
["timestamp","ask_amount","ask_price","bid_price","bid_amount"]
[1759028076736,1.12285349,4003.7,4003.6,0.7676]
[1759028077235,0.60422349,4003.7,4003.6,1.21694]
[1759028077437,0.53492349,4003.7,4003.6,1.21694]
[1759028078540,0.98425349,4003.7,4003.6,1.21694]
[1759028078730,0.98425349,4003.7,4003.6,0.7676]
[1759028079532,0.98425349,4003.7,4003.6,1.21694]
[1759028080044,0.98425349,4003.7,4003.6,0.7676]
[1759028080233,1.05355349,4003.7,4003.6,0.7676]
[1759028081233,1.05355349,4003.7,4003.6,1.21694]
[1759028086042,0.60422349,4003.7,4003.6,1.21694]
[1759028086243,0.53492349,4003.7,4003.6,1.21694]
[1759028089141,1.12285349,4003.7,4003.6,1.21694]
[1759028093445,1.12285349,4003.7,4003.6,0.7676]
[1759028097151,1.12285349,4003.7,4003.6,1.21694]
[1759028097343,0.53492349,4003.7,4003.6,1.21694]
[1759028099946,0.53492349,4003.7,4003.6,1.41990326]
[1759028100147,0.53492349,4003.7,4003.6,1.21694]
[1759028101347,0.53492349,4003.7,4003.6,9.42474]
[1759028101555,0.00183739,4004.1,4004.0,1.02179]
[1759028101853,0.00183739,4004.1,4004.0,1.58769]
[1759028102353,0.53337083,4004.1,4004.0,1.58769]
[1759028106758,0.98265083,4004.1,4004.0,1.58769]
[1759028108060,0.53337083,4004.1,4004.0,1.58769]
[1759028109568,0.53273285,4004.1,4004.0,1.58769]
[1759028113570,0.00183739,4004.1,4004.0,1.58769]
[1759028122481,0.45111739,4004.1,4004.0,1.58769]
[1759028124680,0.00183739,4004.1,4004.0,1.58769]
[1759028126782,0.45111739,4004.1,4004.0,1.58769]
[1759028128079,0.00183739,4004.1,4004.0,1.58769]
[1759028129376,0.53266776,4004.1,4004.0,1.58769]
[1759028138192,0.98194776,4004.1,4004.0,1.58769]
[1759028138587,0.53266776,4004.1,4004.0,1.58769]
[1759028141090,0.53266776,4004.1,4003.8,4.62289507]
[1759028141091,0.63046,4003.4,4003.3,3.2078]
[1759028141291,0.51845,4002.6,4002.5,0.1338]
[1759028141493,0.44949,4002.3,4002.2,3.2078]
[1759028141689,0.1811,4002.2,4002.1,0.00313742]
[1759028141992,0.6740199,4002.2,4002.1,0.47823742]
[1759028142194,0.6740199,4002.2,4002.1,0.80773742]
[1759028143192,0.138,4002.2,4002.1,0.80773742]
[1759028143399,0.7464,4000.7,4000.2,1.795066]
[1759028143590,0.66172,4000.2,4000.1,3.6456]
[1759028143785,0.212,4000.2,4000.1,3.8966]
[1759028143990,0.4497,4000.4,4000.1,3.8966]
[1759028144189,0.44972,4000.2,4000.1,3.8966]
[1759028144393,0.45204914,4000.2,4000.1,3.89888116]
[1759028145601,3.2078,4001.1,4000.1,3.89888116]
[1759028145602,0.44962,4001.1,4001.0,0.5715]
[1759028145900,0.44962,4001.1,4001.0,1.152]
[1759028146099,3.2078,4001.6,4001.5,0.5715]
[1759028146293,3.2078,4001.6,4001.5,0.901]
[1759028146597,3.42278517,4001.6,4001.5,0.901]
[1759028146896,3.95718517,4001.6,4001.5,0.901]
[1759028148894,3.63398517,4001.6,4001.5,0.901]
[1759028149297,3.95718517,4001.6,4001.5,0.901]
[1759028150395,3.95718517,4001.6,4001.5,0.7673]
[1759028158495,0.74938517,4001.6,4001.5,0.7673]
[1759028160196,0.44958,4001.5,4001.4,0.251]
[1759028160395,1.33718,4001.5,4001.4,0.251]
[1759028161301,1.33718,4001.5,4001.0,3.5291]
[1759028161302,1.21362,4001.1,4001.0,3.5291]
[1759028161506,1.21362,4001.1,4001.0,3.7353]
[1759028162209,1.21362,4001.1,4001.0,3.9563]
[1759028163197,1.21362,4001.1,4001.0,4.0827]
[1759028163604,0.2171,4001.1,4001.0,4.0827]
[1759028163810,1.21654517,4001.6,4001.5,0.7485]
[1759028168001,1.21654517,4001.6,4001.5,0.5275]
[1759028168300,0.44962,4001.1,4001.0,3.7614]
[1759028168501,1.00012,4001.1,4001.0,4.0827]
[1759028168911,1.21362,4001.1,4001.0,4.0827]
[1759028169303,0.88022,4001.1,4001.0,4.0827]
[1759028169510,0.66672,4001.1,4001.0,4.0827]
[1759028169807,0.44962,4001.2,4001.1,1.21612]
[1759028170008,0.44962,4001.2,4001.1,2.35278652]
[1759028170201,0.00298517,4001.6,4001.5,0.8946]
[1759028170406,0.54221946,4001.6,4001.5,0.8946]
[1759028170713,0.74931946,4001.6,4001.5,0.8946]
[1759028170908,0.99177946,4001.6,4001.5,0.8946]
[1759028171408,1.74387946,4001.6,4001.5,0.8946]
[1759028176515,1.19887946,4001.6,4001.5,0.8946]
[1759028176716,1.52237946,4001.6,4001.5,0.8946]
[1759028178618,1.52237946,4001.6,4001.5,1.34418]
[1759028182021,0.74931946,4001.6,4001.5,1.34418]
[1759028182720,1.07281946,4001.6,4001.5,1.34418]
[1759028183320,0.74931946,4001.6,4001.5,1.34418]
[1759028183617,0.54221946,4001.6,4001.5,1.34418]
[1759028183822,0.54221946,4001.6,4001.5,6.34418]
[1759028183823,0.00298517,4001.6,4001.5,6.34418]
[1759028185919,0.00298517,4001.6,4001.5,9.55198]
[1759028186522,0.3242,4002.3,4002.2,0.4495]
[1759028186721,1.54028955,4002.3,4002.2,1.4572]
[1759028187521,1.54274566,4002.3,4002.2,1.4572]
[1759028187721,1.54274566,4002.3,4002.2,1.0077]
[1759028187722,1.75354566,4002.3,4002.2,1.0077]
[1759028190018,1.75354566,4002.3,4002.2,1.4572]
[1759028190524,1.75354566,4002.3,4002.2,1.0077]
[1759028193120,1.75354566,4002.3,4002.2,0.7914]
[1759028215942,1.75354566,4002.3,4002.2,1.0077]
[1759028221533,0.99184566,4002.3,4002.2,1.4572]
[1759028221738,0.45194611,4002.3,4002.2,1.0077]
[1759028222542,0.45194611,4002.3,4002.2,1.4572]
[1759028222746,0.45194611,4002.3,4002.2,4.665]
[1759028224161,0.00245611,4002.3,4002.2,4.665]
[1759028231968,0.00245611,4002.3,4002.2,6.08081977]
[1759028240380,0.75285611,4002.3,4002.2,4.414]
[1759028240578,0.75285611,4002.3,4002.2,4.665]
[1759028242073,0.75285611,4002.3,4002.2,4.414]
[1759028242270,0.75285611,4002.3,4002.2,4.665]
[1759028250486,0.20825611,4002.3,4002.2,4.665]
[1759028251778,0.00245611,4002.3,4002.2,4.665]
[1759028255584,0.3184,4002.9,4002.8,0.44943]
[1759028255886,1.30187371,4002.9,4002.8,1.45993]
[1759028256485,1.75432019,4002.9,4002.8,1.45993]
[1759028259793,1.30490019,4002.9,4002.8,1.45993]
[1759028261793,1.3047754,4002.9,4002.8,1.45993]
[1759028268202,0.7612,4002.6,4002.5,0.3301]
[1759028268395,1.30174892,4002.6,4002.5,0.5811]
[1759028268889,1.30174892,4002.6,4002.5,0.7965]
[1759028269290,1.30174892,4002.6,4002.5,1.45996]
[1759028269495,1.30174892,4002.6,4002.5,1.58446]
[1759028271603,1.30174892,4002.6,4002.5,1.45996]
[1759028274903,1.75119892,4002.6,4002.5,1.45996]
[1759028278709,1.75119892,4002.6,4002.5,1.0105]
[1759028279205,1.75119892,4002.6,4002.5,1.45996]
[1759028280301,1.75119892,4002.6,4002.5,1.0105]
[1759028281206,1.75119892,4002.6,4002.5,1.45996]
[1759028281906,1.75119892,4002.6,4002.5,1.0105]
[1759028282307,1.75119892,4002.6,4002.5,1.45996]
[1759028283103,1.75093199,4002.6,4002.5,1.45996]
[1759028283601,1.75093199,4002.6,4002.5,1.0105]
[1759028283799,1.22097,4002.4,4002.3,3.7397]
[1759028284005,1.76125199,4002.4,4002.3,3.4588]
[1759028284204,1.76125199,4002.4,4002.3,3.90829]
[1759028284402,1.76125199,4002.4,4002.3,4.44019]
[1759028284599,1.76125199,4002.4,4002.3,1.23239]
[1759028284908,0.89121,4002.1,4002.0,0.22]
[1759028285100,1.43149199,4002.1,4002.0,0.471]
[1759028285295,1.76129199,4002.1,4002.0,0.9882]
[1759028290109,0.44954,4001.8,4001.7,3.2078]
[1759028290408,1.73292199,4001.8,4001.7,3.6733]
[1759028290614,1.73292199,4001.8,4001.7,0.8029]
[1759028292909,1.73292199,4001.8,4001.7,0.251]
[1759028293813,1.73292199,4001.8,4001.7,0.5884]
[1759028294009,1.28338199,4001.8,4001.7,1.46185]
[1759028294209,1.28338199,4001.8,4001.7,2.59790785]
[1759028294521,0.44951,4002.1,4002.0,1.34222]
[1759028294724,0.5403953,4002.1,4002.0,2.72927785]
[1759028295213,3.2078,4002.2,4002.0,2.39187785]
[1759028295416,3.2078,4002.2,4002.1,0.4239]
[1759028295714,3.74824252,4002.2,4002.1,0.7613]
[1759028298315,3.95534252,4002.2,4002.1,0.7613]
[1759028298714,0.74754252,4002.2,4002.1,0.7613]
[1759028299015,0.2071,4002.2,4002.1,0.7613]
[1759028299711,1.28369268,4002.2,4002.1,0.8029]
[1759028300914,1.28369268,4002.2,4002.1,0.251]
[1759028303519,1.28369268,4002.2,4002.1,0.7895]
[1759028304920,1.73319268,4002.2,4002.1,0.7895]
[1759028314526,1.73391701,4002.2,4002.1,0.7895]
[1759028330539,0.44956,4001.7,4001.6,0.2267]
[1759028330741,1.20556,4001.7,4001.6,0.8017]
[1759028330934,1.74687701,4001.7,4001.6,0.8017]
[1759028331239,1.74687701,4001.7,4001.6,0.251]
[1759028331435,1.74687701,4001.7,4001.6,0.575]
[1759028331642,1.74687701,4001.7,4001.6,0.8017]
[1759028331841,1.74687701,4001.7,4001.6,1.0144]
[1759028333144,1.74687701,4001.7,4001.6,1.46396]
[1759028334744,1.74687701,4001.7,4001.6,1.0144]
[1759028335649,0.76851701,4001.7,4001.6,1.46396]
[1759028335846,0.54131701,4001.7,4001.6,1.46396]
[1759028336146,0.44952,4002.1,4002.0,0.5698]
[1759028336339,1.55807788,4002.1,4002.0,0.9043]
[1759028338551,1.77087788,4002.1,4002.0,0.9043]
[1759028341558,1.77087788,4002.1,4002.0,0.7726]
[1759028343556,1.77087788,4002.1,4002.0,0.5595]
[1759028344353,1.02022,4002.0,4001.9,0.251]
[1759028344549,1.90097788,4002.0,4001.9,0.5855]
[1759028346851,1.90097788,4002.0,4001.9,0.8105]
[1759028360268,1.77087788,4002.0,4001.9,1.0294]
[1759028360465,0.54175788,4002.0,4001.9,1.47893]
[1759028360671,0.4495,4002.2,4002.1,0.7511]
[1759028361166,0.99299626,4002.2,4002.1,0.7511]
[1759028364275,1.53319626,4002.2,4002.1,0.7511]
[1759028364470,1.20329626,4002.2,4002.1,0.7511]
[1759028365273,1.20329626,4002.2,4002.1,1.20061]
[1759028371070,1.53319626,4002.2,4002.1,1.20061]
[1759028371479,0.54349626,4002.2,4002.1,2.61664364]
[1759028371779,1.21773,4002.8,4002.7,0.7671]
[1759028372077,1.7608269,4002.8,4002.7,1.0181]
[1759028375478,1.7608269,4002.8,4002.7,0.251]
[1759028379587,1.21777,4002.4,4002.3,0.99238]
[1759028379888,0.88791,4002.1,4002.0,3.8866]
[1759028380081,1.21781,4002.1,4002.0,4.3618]
[1759028384393,1.21781,4002.1,4002.0,4.81132]
[1759028385295,0.66681,4002.1,4002.0,4.81132]
[1759028388891,0.5472,4002.1,4002.0,4.81132]
[1759028389197,0.2173,4002.1,4002.0,4.81132]
[1759028390606,0.4495,4002.2,4002.1,1.21661]
[1759028391999,0.4495,4002.2,4002.1,0.89071]
[1759028392794,0.6668,4002.2,4002.1,1.21661]
[1759028394697,1.0056,4002.2,4002.1,1.21661]
[1759028398603,0.2173,4002.2,4002.1,1.21661]
[1759028399297,0.3388,4002.4,4002.2,0.7641]
[1759028399507,3.77232648,4002.9,4002.8,0.7641]
[1759028399704,1.10712807,4002.9,4002.8,1.0151]
[1759028400401,1.21774807,4002.9,4002.8,1.0151]
[1759028400607,1.55654807,4002.9,4002.8,1.0151]
[1759028403499,0.76832807,4002.9,4002.8,1.0151]
[1759028403806,0.00302648,4002.9,4002.8,1.0151]
[1759028405907,0.22572648,4002.9,4002.8,1.0151]
[1759028406298,0.56452648,4002.9,4002.8,1.0151]
[1759028408405,0.22572648,4002.9,4002.8,1.0151]
[1759028409103,0.00302648,4002.9,4002.8,1.0151]
[1759028409697,0.22572648,4002.9,4002.8,1.0151]
[1759028411605,0.22572648,4002.9,4002.8,2.1509117]
[1759028415106,0.22572648,4002.9,4002.8,2.6003417]
[1759028415705,0.76072648,4002.9,4002.8,1.21353]
[1759028415910,0.76072648,4002.9,4002.8,2.6003417]
[1759028416206,0.53552648,4002.9,4002.8,2.6003417]
[1759028416412,0.22572648,4002.9,4002.8,2.6003417]
[1759028416709,0.00302648,4002.9,4002.8,2.6003417]
[1759028420107,0.21872648,4002.9,4002.8,2.6003417]
[1759028422712,0.00302648,4002.9,4002.8,2.6003417]
[1759028427012,0.00302648,4002.9,4002.8,1.46453]
[1759028427315,0.00302648,4002.9,4002.8,2.6003417]
[1759028436827,0.22192648,4002.9,4002.8,2.6003417]
[1759028437428,0.00302648,4002.9,4002.8,2.6003417]
[1759028438629,0.22192648,4002.9,4002.8,2.6003417]
[1759028440324,0.22192648,4002.9,4002.8,1.21353]
[1759028440529,0.75632648,4002.9,4002.8,1.46453]
[1759028440729,1.29794595,4002.9,4002.8,1.46453]
[1759028441531,0.76354595,4002.9,4002.8,1.46453]
[1759028442921,0.76354595,4002.9,4002.8,2.6003417]
[1759028443127,1.07404595,4002.9,4002.8,2.6003417]
[1759028444535,0.76354595,4002.9,4002.8,2.6003417]
[1759028445734,0.76354595,4002.9,4002.8,1.46453]
[1759028445931,0.76354595,4002.9,4002.8,2.6003417]
[1759028449441,1.29794595,4002.9,4002.8,0.99203]
[1759028449637,1.29794595,4002.9,4002.8,1.46983]
[1759028449937,0.76354595,4002.9,4002.8,1.46983]
[1759028450837,0.00302648,4002.9,4002.8,1.46983]
[1759028454847,0.21032648,4002.9,4002.8,1.46983]
[1759028455645,0.00302648,4002.9,4002.8,1.46983]
[1759028462557,0.00302648,4002.9,4002.8,2.88474759]
[1759028467863,0.3204,4003.7,4003.6,0.44934]
[1759028468162,0.2073,4003.7,4003.6,1.47844]
[1759028468756,0.74777982,4003.7,4003.6,1.47844]
[1759028468969,0.54319696,4003.7,4003.6,1.48070437]
[1759028469461,0.00271714,4003.7,4003.6,1.48070437]
[1759028475766,0.5248,4004.6,4004.5,0.8666]
[1759028476066,0.5248,4004.6,4004.5,1.56684]
[1759028476263,3.4226,4004.7,4004.6,0.3105]
[1759028476465,3.7326,4004.7,4004.6,0.7335]
[1759028476664,3.73498406,4004.7,4004.6,0.7335]
[1759028478064,3.42498406,4004.7,4004.6,0.7335]
[1759028478457,0.21718406,4004.7,4004.6,0.7335]
[1759028484172,0.21718406,4004.7,4004.6,2.14841759]
[1759028484676,0.53238406,4004.7,4004.6,2.14841759]
[1759028485476,0.53238406,4004.7,4004.6,2.59764759]
[1759028485676,0.21718406,4004.7,4004.6,2.59764759]
[1759028486068,0.00238406,4004.7,4004.6,2.59764759]
[1759028495182,0.73348406,4004.7,4004.6,1.18273]
[1759028496372,0.73348406,4004.7,4004.6,0.7335]
[1759028496577,0.73348406,4004.7,4004.3,0.5479]
[1759028496578,0.3152,4004.4,4004.3,0.5479]
[1759028496769,5.45161406,4004.7,4004.6,0.7636]
[1759028496770,0.00238406,4004.7,4004.6,0.7636]
[1759028496970,0.00238406,4004.7,4004.6,2.42851759]
[1759028497171,0.73348406,4004.7,4004.6,0.7636]
[1759028497371,1.18270406,4004.7,4004.6,1.0136]
[1759028500881,0.73348406,4004.7,4004.6,1.0136]
[1759028502280,0.20978406,4004.7,4004.6,1.0136]
[1759028502590,0.00238406,4004.7,4004.6,1.0136]
[1759028504579,0.00238406,4004.7,4004.6,1.46283]
[1759028505185,0.54247001,4004.7,4004.6,1.46283]
[1759028506180,0.00238406,4004.7,4004.6,1.46283]
[1759028514595,0.43058406,4004.7,4004.6,1.46283]
[1759028514894,0.74398406,4004.7,4004.6,2.87774759]
[1759028515392,0.74398406,4004.7,4004.6,1.21283]
[1759028515696,0.74398406,4004.7,4004.6,1.46283]
[1759028517094,0.74398406,4004.7,4004.6,1.21283]
[1759028517399,0.74398406,4004.7,4004.6,1.46283]
[1759028520885,0.43058406,4004.7,4004.4,3.2078]
[1759028521198,0.7416,4004.5,4004.4,4.41255]
[1759028521390,0.7416,4004.5,4004.4,4.66255]
[1759028522082,0.7416,4004.5,4004.4,6.07746759]
[1759028523593,0.7416,4004.5,4004.4,3.9633]
[1759028523902,0.7416,4004.0,4003.9,0.5355]
[1759028524194,1.28172716,4004.0,4003.9,0.7855]
[1759028524397,1.28154473,4004.0,4003.9,0.7855]
[1759028524694,1.41154473,4004.0,4003.9,0.5355]
[1759028524993,1.41154473,4004.0,4003.9,0.7855]
[1759028525593,1.41154473,4004.0,4003.9,0.25]
[1759028526192,1.41154473,4004.0,4003.9,0.7855]
[1759028526494,0.7416,4004.0,4003.9,1.0055]
[1759028527588,0.3134,4004.3,4004.0,0.1361]
[1759028527794,0.5274,4004.3,4004.2,0.7555]
[1759028528097,1.06643671,4004.3,4004.2,0.7555]
[1759028528298,0.75303671,4004.3,4004.2,0.7555]
[1759028529699,1.06253671,4004.3,4004.2,0.7555]
[1759028531695,0.75303671,4004.3,4004.2,0.7555]
[1759028532000,1.06253671,4004.3,4004.2,0.7555]
[1759028532199,0.5235,4004.3,4004.2,0.7555]
[1759028533797,0.3095,4004.5,4004.3,0.44926]
[1759028534100,0.7354,4004.5,4004.4,2.16796823]
[1759028534398,1.27399938,4004.5,4004.4,2.16796823]
[1759028535194,0.7354,4004.5,4004.4,2.16796823]
[1759028539203,1.18464,4004.5,4004.4,2.61721823]
[1759028539504,1.7232788,4004.5,4004.4,2.61721823]
[1759028540908,1.18469,4004.0,4003.9,0.2266]
[1759028541104,1.18469,4004.0,4003.9,0.4766]
[1759028541499,1.18469,4004.0,4003.9,0.8147]
[1759028541699,1.18469,4004.0,4003.9,1.26401]
[1759028542807,1.18469,4004.0,4003.9,0.8147]
[1759028543505,1.31829,4004.0,4003.9,0.8147]
[1759028543708,1.31829,4004.0,4003.9,0.25]
[1759028544304,1.31829,4004.0,4003.8,0.44931]
[1759028544305,1.31829,4004.0,4003.7,1.46796823]
[1759028544510,0.7332,4003.7,4003.6,0.00226437]
[1759028544803,1.27230384,4003.7,4003.6,0.00226437]
[1759028545009,1.27230384,4003.7,4003.6,0.25226437]
[1759028545508,1.27230384,4003.7,4003.6,0.58496437]
[1759028547012,1.27230384,4003.7,4003.6,0.80176437]
[1759028551613,0.7332,4003.7,4003.6,0.80176437]
[1759028551812,1.18253,4003.7,4003.6,0.80176437]
[1759028554915,1.7219694,4003.7,4003.6,0.80176437]
[1759028556612,1.7219694,4003.7,4003.6,1.25110437]
[1759028562014,3.7257,4004.2,4004.1,0.66608]
[1759028562213,0.74527926,4004.2,4004.1,2.60614823]
[1759028566122,1.27197926,4004.2,4004.1,1.47088]
[1759028567308,1.27197926,4004.2,4004.1,1.0216]
[1759028568116,0.7332,4004.2,4004.1,1.0216]
[1759028568420,1.27213582,4004.2,4004.1,1.0216]
[1759028568616,0.74543582,4004.2,4004.1,1.0216]
[1759028568821,0.53893582,4004.2,4004.1,1.0216]
[1759028569121,4.39261406,4004.7,4004.6,1.22083]
[1759028569313,4.93157925,4004.7,4004.6,1.22083]
[1759028569712,4.93157925,4004.7,4004.6,0.7716]
[1759028570614,4.48234925,4004.7,4004.6,1.0216]
[1759028571913,4.93156925,4004.7,4004.6,1.0216]
[1759028572114,4.93156925,4004.7,4004.6,0.7995]
[1759028572416,4.93156925,4004.7,4004.6,0.25]
[1759028573414,0.54134925,4004.7,4004.6,2.58939823]
[1759028573811,0.00238406,4004.7,4004.6,2.58939823]
[1759028575113,0.00238406,4004.7,4004.6,7.58939823]
[1759028581026,0.2192,4005.5,4005.4,0.88753]
[1759028581220,0.2192,4005.5,4005.4,2.27279823]
[1759028581521,0.5353,4005.5,4005.4,2.58929823]
[1759028582022,0.538021,4005.5,4005.4,2.58929823]
[1759028582225,0.765621,4005.5,4005.4,2.58929823]
[1759028585426,0.894921,4005.5,4005.4,0.25]
[1759028587224,0.894921,4005.5,4005.0,3.79297]
[1759028587225,0.89597,4005.1,4005.0,3.422]
[1759028587426,0.7629,4005.1,4005.0,3.8962]
[1759028587733,0.7629,4005.1,4005.0,4.2127]
[1759028587931,0.7629,4005.1,4005.0,4.3487]
[1759028590140,0.7629,4005.1,4005.0,4.2127]
[1759028590323,0.7629,4005.1,4005.0,1.0049]
[1759028591034,0.7629,4005.1,4005.0,1.45408]
[1759028594737,1.21207,4005.1,4005.0,0.7549]
[1759028594937,1.1921,4004.8,4004.7,0.3209]
[1759028595240,1.1921,4004.8,4004.7,0.5709]
[1759028595433,1.1921,4004.8,4004.7,0.7883]
[1759028597240,1.73035237,4004.8,4004.7,0.7883]
[1759028599940,1.28115237,4004.8,4004.7,1.44652]
[1759028600140,0.53825237,4004.8,4004.7,1.44652]
[1759028600346,3.2078,4005.1,4005.0,0.99988]
[1759028600644,3.2078,4005.1,4005.0,2.98460649]
[1759028608649,1.09749284,4005.3,4005.2,1.44046]
[1759028610442,0.002721,4005.5,4005.4,1.19044]
[1759028610645,0.002721,4005.5,4005.4,1.44044]
[1759028610850,1.230151,4005.5,4005.4,1.44044]
[1759028612244,1.230151,4005.5,4005.4,0.9913]
[1759028613145,0.229221,4005.5,4005.4,2.85426649]
[1759028613350,0.002721,4005.5,4005.4,2.85426649]
[1759028616151,0.002721,4005.5,4005.4,7.85426649]
[1759028619458,0.002721,4005.5,4005.4,2.85426649]
[1759028629967,0.002721,4005.5,4005.4,6.06206649]
[1759028634570,0.7617,4006.3,4006.2,1.19305]
[1759028634763,0.2105,4006.3,4006.2,2.85687649]
[1759028634963,3.7451,4006.5,4006.4,1.19303]
[1759028635166,3.7451,4006.5,4006.4,1.44303]
[1759028635369,3.4183,4006.5,4006.4,1.44303]
[1759028635669,3.42091474,4006.5,4006.4,1.44303]
[1759028636659,3.21041474,4006.5,4006.4,1.64636759]
[1759028636875,0.21311474,4006.5,4006.4,1.64636759]
[1759028637460,0.00261474,4006.5,4006.4,1.64636759]
[1759028638975,0.00261474,4006.5,4006.4,4.85416759]
[1759028640076,0.00261474,4006.5,4006.4,4.65083]
[1759028645074,0.21311474,4006.5,4006.4,4.65083]
[1759028645283,0.53991474,4006.5,4006.4,4.65083]
[1759028646278,0.00261474,4006.5,4006.4,4.65083]
[1759028647084,0.21311474,4006.5,4006.4,4.65083]
[1759028647484,0.00261474,4006.5,4006.4,4.65083]
[1759028648695,0.00261474,4006.5,4006.4,5.78440915]
[1759028653488,0.00261474,4006.5,4006.4,3.9518]
[1759028653489,1.18952474,4006.5,4006.4,3.9518]
[1759028653681,1.18952474,4006.5,4006.4,5.33537915]
[1759028655181,1.18952474,4006.5,4006.4,5.08537915]
[1759028655382,1.18952474,4006.5,4006.4,5.33537915]
[1759028660192,0.74051474,4006.5,4006.4,5.78440915]
[1759028660397,0.00261474,4006.5,4006.4,5.78440915]
[1759028671596,1.22722474,4006.5,4006.4,3.9518]
[1759028671811,1.76639981,4006.5,4006.4,4.2018]
[1759028672392,1.31738981,4006.5,4006.4,4.65083]
[1759028672799,0.00261474,4006.5,4006.4,4.65083]
[1759028676300,0.55251474,4006.5,4006.4,4.65083]
[1759028676898,0.21901474,4006.5,4006.4,4.65083]
[1759028678702,0.00261474,4006.5,4006.4,4.65083]
[1759028695510,3.2078,4007.6,4006.4,5.36310915]
[1759028695709,0.44887,4007.8,4007.5,2.15387915]
[1759028695908,0.53897563,4007.7,4007.6,1.0216]
[1759028696708,0.5411015,4007.7,4007.6,1.02340114]
[1759028696914,0.7544015,4007.7,4007.6,2.15698029]
[1759028697112,1.2949015,4007.7,4007.6,2.15698029]
[1759028697613,1.2949015,4007.7,4007.6,1.38538029]
[1759028698213,1.2949015,4007.7,4007.6,1.72038029]
[1759028700112,1.2949015,4007.7,4007.6,1.93798029]
[1759028700412,6.2949015,4007.7,4007.6,0.25180114]
[1759028701700,0.44895,4007.1,4007.0,0.335]
[1759028702013,1.74172563,4007.1,4007.0,0.585]
[1759028702512,1.74172563,4007.1,4007.0,0.25]
[1759028702709,1.74172563,4007.1,4007.0,0.25262275]
[1759028702905,1.74172563,4007.1,4007.0,0.58762275]
[1759028704713,1.74172563,4007.1,4007.0,0.00262275]
[1759028704918,1.74172563,4007.1,4007.0,0.25262275]
[1759028705818,1.74172563,4007.1,4007.0,0.58762275]
[1759028709923,1.74172563,4007.1,4007.0,0.80522275]
[1759028713719,1.74172563,4007.1,4007.0,1.14692275]
[1759028714124,1.74172563,4007.1,4007.0,2.5594513]
[1759028718728,1.74172563,4007.1,4007.0,2.4353513]
[1759028718925,1.74172563,4007.1,4007.0,1.02282275]
[1759028725135,1.74172563,4007.1,4007.0,1.47178275]
[1759028725536,1.29277563,4007.1,4007.0,1.47178275]
[1759028726236,1.29277563,4007.1,4007.0,1.60348275]
[1759028728740,1.74172563,4007.1,4007.0,1.60348275]
[1759028729438,1.29277563,4007.1,4007.0,1.60348275]
[1759028730139,0.53897563,4007.1,4007.0,3.0160113]
[1759028730344,0.53897563,4007.1,4007.0,6.60348275]
[1759028730545,3.2078,4007.5,4007.4,0.88631]
[1759028730743,0.75844757,4007.5,4007.4,1.46451]
[1759028731143,1.08624757,4007.5,4007.4,1.46451]
[1759028731344,0.53754757,4007.5,4007.4,1.46451]
[1759028732345,0.75844757,4007.5,4007.4,1.46451]
[1759028732535,1.30994757,4007.5,4007.4,1.46451]
[1759028732736,1.30994757,4007.5,4007.4,1.0156]
[1759028733447,0.5487,4007.2,4007.1,0.5458]
[1759028733743,0.5487,4007.2,4007.1,1.24474]
[1759028733744,1.30994757,4007.2,4007.1,1.24474]
[1759028736943,1.30994757,4007.2,4007.1,1.46454]
[1759028738348,1.30994757,4007.2,4007.1,1.0156]
[1759028738553,1.30994757,4007.2,4007.1,0.5782]
[1759028739347,1.75888757,4007.2,4007.1,0.5782]
[1759028739546,1.75888757,4007.2,4007.0,0.00262275]
[1759028739547,1.22135,4007.1,4007.0,0.00262275]
[1759028739846,1.75889757,4007.1,4007.0,0.00262275]
[1759028741547,1.35551,4006.5,4006.4,0.25]
[1759028741746,1.89305757,4006.5,4006.4,0.25]
[1759028742346,1.89305757,4006.5,4005.8,3.6452]
[1759028742347,0.89368,4005.9,4005.8,3.6452]
[1759028742649,1.75708636,4005.9,4005.8,3.97599314]
[1759028742849,1.75708636,4005.9,4005.8,0.00259314]
[1759028749458,1.22148,4005.9,4005.8,0.00259314]
[1759028749648,1.7556493,4005.9,4005.8,0.00259314]
[1759028750048,7.0056493,4005.9,4005.8,0.00259314]
[1759028751557,7.0056493,4005.9,4005.1,0.5458]
[1759028751558,1.22156,4005.2,4005.1,0.5458]
[1759028752248,1.22156,4005.2,4005.1,0.3282]
[1759028752452,3.2078,4005.4,4004.8,3.2078]
[1759028752453,1.22159,4004.9,4004.8,3.9734]
[1759028752655,1.22159,4004.9,4004.8,3.97542613]
[1759028752853,1.22159,4004.9,4004.8,0.54782613]
[1759028755558,1.22159,4004.9,4004.8,0.76762613]
[1759028755754,0.7724,4004.9,4004.8,0.76762613]
[1759028759462,1.22159,4004.9,4004.8,0.76762613]
[1759028760356,1.22159,4004.9,4004.8,1.21682613]
[1759028760860,1.22159,4004.9,4004.8,0.76762613]
[1759028761055,1.22159,4004.9,4004.8,1.21682613]
[1759028761764,1.22159,4004.9,4004.8,0.76762613]
[1759028763465,1.22159,4004.9,4004.8,1.21682613]
[1759028764064,1.22159,4004.9,4004.8,0.76762613]
[1759028764765,1.22159,4004.9,4004.8,1.21682613]
[1759028765266,1.22159,4004.9,4004.8,0.76762613]
[1759028767167,1.22159,4004.9,4004.8,1.21682613]
[1759028767568,1.22159,4004.9,4004.8,0.76762613]
[1759028768370,1.22159,4004.9,4004.8,1.21682613]
[1759028769969,0.7724,4004.9,4004.8,1.21682613]
[1759028770572,0.7724,4004.9,4004.8,2.35143901]
[1759028771273,1.22159,4004.9,4004.8,2.35143901]
[1759028772169,0.7724,4004.9,4004.8,2.35143901]
[1759028772368,1.22159,4004.9,4004.8,2.35143901]
[1759028772673,1.22159,4004.9,4004.8,1.90223901]
[1759028773378,1.75812681,4004.9,4004.8,1.90223901]
[1759028775075,1.75812681,4004.9,4004.8,0.76762613]
[1759028775282,4.96592681,4004.9,4004.8,0.00202613]
[1759028780180,4.96592681,4004.9,4004.8,0.31292613]
[1759028783288,4.96592681,4004.9,4004.8,0.00202613]
[1759028785085,5.21592681,4004.9,4004.8,0.00202613]
[1759028787880,4.96592681,4004.9,4004.8,0.00202613]
[1759028788076,5.21592681,4004.9,4004.8,0.00202613]
[1759028788790,4.96592681,4004.9,4004.8,0.00202613]